fUSD/lending_fUSD_20250115
["ID","MTS","AMOUNT","RATE_DAILY","PERIOD"]
[349082335,1736963467600,-500.0,0.00043013,4]
[349082336,1736963467610,-500.0,0.00043013,4]
[349082337,1736963467620,-500.0,0.00043013,4]
[349082338,1736963467630,-500.0,0.00043013,4]
[349082339,1736963467641,-500.0,0.00043013,4]
[349082340,1736963467650,-500.0,0.00043013,4]
[349082341,1736963467660,-614.78,0.00043013,4]
[349082342,1736963467669,-500.0,0.00043013,4]
[349082343,1736963467679,-500.0,0.00043013,4]
[349082344,1736963467688,-500.0,0.00043013,4]
[349082345,1736963467698,-525.81,0.00043013,4]
[349082346,1736963467707,-500.0,0.00043013,4]
[349082347,1736963467716,-500.0,0.00043013,4]
[349082348,1736963467726,-500.0,0.00043013,4]
[349082349,1736963467735,-500.0,0.00043013,4]
[349082350,1736963467744,-500.0,0.00043013,4]
[349082351,1736963467754,-500.0,0.00043013,4]
[349082352,1736963467763,-500.0,0.00043013,4]
[349082353,1736963467773,-500.0,0.00043013,4]
[349082354,1736963467782,-500.0,0.00043013,4]
[349082355,1736963467792,-500.0,0.00043013,4]
[349082356,1736963467802,-500.0,0.00043013,4]
[349082357,1736963467811,-500.0,0.00043013,4]
[349082358,1736963467820,-249.037796,0.00043013,4]
[349082359,1736963467830,-500.0,0.00043013,4]
[349082360,1736963467839,-500.0,0.00043013,4]
[349082361,1736963467849,-500.0,0.00043013,4]
[349082362,1736963467858,-500.0,0.00043013,4]
[349082363,1736963467867,-500.0,0.00043013,4]
[349082364,1736963467877,-500.0,0.00043013,4]
[349082365,1736963467887,-500.0,0.00043013,4]
[349082366,1736963467896,-217.54,0.00043013,4]
[349082367,1736963467906,-500.0,0.00043013,4]
[349082368,1736963467916,-500.0,0.00043013,4]
[349082369,1736963467926,-500.0,0.00043013,4]
[349082370,1736963467936,-500.0,0.00043013,4]
[349082371,1736963467947,-500.0,0.00043013,4]
[349082372,1736963467957,-500.0,0.00043013,4]
[349082373,1736963467967,-500.0,0.00043013,4]
[349082374,1736963467977,-500.0,0.00043013,4]
[349082375,1736963467986,-500.0,0.00043013,4]
[349082376,1736963467996,-500.0,0.00043013,4]
[349082377,1736963468005,-500.0,0.00043013,4]
[349082378,1736963468015,-500.0,0.00043013,4]
[349082379,1736963468024,-500.0,0.00043013,4]
[349082380,1736963468033,-500.0,0.00043013,4]
[349082381,1736963468043,-500.0,0.00043013,4]
[349082382,1736963468052,-500.0,0.00043013,4]
[349082383,1736963468062,-500.0,0.00043013,4]
[349082384,1736963468072,-500.0,0.00043013,4]
[349082385,1736963468081,-500.0,0.00043013,4]
[349082386,1736963468091,-500.0,0.00043013,4]
[349082387,1736963468104,-500.0,0.00043013,4]
[349082388,1736963468114,-500.0,0.00043013,4]
[349082389,1736963468123,-500.0,0.00043013,4]
[349082390,1736963468133,-500.0,0.00043013,4]
[349082391,1736963468145,-500.0,0.00043013,4]
[349082392,1736963468155,-500.0,0.00043013,4]
[349082393,1736963468164,-500.0,0.00043013,4]
[349082394,1736963468173,-500.0,0.00043013,4]
[349082395,1736963468185,-500.0,0.00043013,4]
[349082396,1736963468194,-500.0,0.00043013,4]
[349082397,1736963468204,-500.0,0.00043013,4]
[349082398,1736963468213,-625.65938697,0.00043013,4]
[349082399,1736963468222,-500.0,0.00043013,4]
[349082400,1736963468231,-500.0,0.00043013,4]
[349082401,1736963468241,-500.0,0.00043013,4]
[349082402,1736963468251,-580.40352711,0.00043013,4]
[349082403,1736963468260,-500.0,0.00043013,4]
[349082404,1736963468269,-574.82835895,0.00043013,4]
[349082405,1736963468279,-500.0,0.00043013,4]
[349082406,1736963468288,-500.0,0.00043013,4]
[349082407,1736963468298,-500.0,0.00043013,4]
[349082408,1736963468307,-500.0,0.00043013,4]
[349082409,1736963468317,-500.0,0.00043013,4]
[349082410,1736963468327,-500.0,0.00043013,4]
[349082411,1736963468336,-500.0,0.00043013,4]
[349082412,1736963468346,-500.0,0.00043013,4]
[349082413,1736963468355,-500.0,0.00043013,4]
[349082414,1736963468365,-500.0,0.00043013,4]
[349082415,1736963468375,-517.8335787,0.00043013,4]
[349082416,1736963468387,-500.0,0.00043013,4]
[349082417,1736963468397,-252.57523643,0.00043013,4]
[349082418,1736963468407,-500.0,0.00043013,4]
[349082419,1736963468416,-500.0,0.00043013,4]
[349082420,1736963468426,-500.0,0.00043013,4]
[349082421,1736963468436,-500.0,0.00043013,4]
[349082422,1736963468445,-500.0,0.00043013,4]
[349082423,1736963468455,-500.0,0.00043013,4]
[349082424,1736963468464,-500.0,0.00043013,4]
[349082425,1736963468474,-500.0,0.00043013,4]
[349082426,1736963468483,-500.0,0.00043013,4]
[349082427,1736963468493,-500.0,0.00043013,4]
[349082428,1736963468502,-500.0,0.00043013,4]
[349082429,1736963468512,-500.0,0.00043013,4]
[349082430,1736963468522,-291.49707369,0.00043013,4]
[349082431,1736963468532,-500.0,0.00043013,4]
[349082432,1736963468541,-500.0,0.00043013,4]
[349082433,1736963468551,-500.0,0.00043013,4]
[349082434,1736963468560,-500.0,0.00043013,4]
[349082435,1736963468570,-500.0,0.00043013,4]
[349082436,1736963468579,-500.0,0.00043013,4]
[349082437,1736963468589,-500.0,0.00043013,4]
[349082438,1736963468599,-500.0,0.00043013,4]
[349082439,1736963468609,-794.49,0.00043013,4]
[349082440,1736963468619,-500.0,0.00043013,4]
[349082441,1736963468629,-500.0,0.00043013,4]
[349082442,1736963468640,-794.49,0.00043013,4]
[349082443,1736963468649,-500.0,0.00043013,4]
[349082444,1736963468659,-794.49,0.00043013,4]
[349082445,1736963468668,-794.49,0.00043013,4]
[349082446,1736963468677,-794.49,0.00043013,4]
[349082447,1736963468687,-794.49,0.00043013,4]
[349082448,1736963468697,-794.49,0.00043013,4]
[349082449,1736963468706,-794.49,0.00043013,4]
[349082450,1736963468716,-794.49,0.00043013,4]
[349082451,1736963468725,-794.49,0.00043013,4]
[349082452,1736963468734,-794.49,0.00043013,4]
[349082453,1736963468744,-794.49,0.00043013,4]
[349082454,1736963468753,-500.0,0.00043013,4]
[349082455,1736963468763,-794.49,0.00043013,4]
[349082456,1736963468773,-500.0,0.00043013,4]
[349082457,1736963468782,-794.49,0.00043013,4]
[349082458,1736963468791,-500.0,0.00043013,4]
[349082459,1736963468801,-500.0,0.00043013,4]
[349082460,1736963468810,-500.0,0.00043013,4]
[349082461,1736963468819,-500.0,0.00043013,4]
[349082462,1736963468829,-500.0,0.00043013,4]
[349082463,1736963468838,-500.0,0.00043013,4]
[349082464,1736963468847,-500.0,0.00043013,4]
[349082465,1736963468856,-500.0,0.00043013,4]
[349082466,1736963468866,-500.0,0.00043013,4]
[349082467,1736963468876,-500.0,0.00043013,4]
[349082468,1736963468885,-500.0,0.00043013,4]
[349082469,1736963468895,-500.0,0.00043013,4]
[349082470,1736963468904,-500.0,0.00043013,4]
[349082471,1736963468913,-500.0,0.00043013,4]
[349082472,1736963468924,-500.0,0.00043013,4]
[349082473,1736963468934,-637.04,0.00043013,4]
[349082474,1736963468944,-637.04,0.00043013,4]
[349082475,1736963468953,-637.04,0.00043013,4]
[349082476,1736963468963,-208.75593996,0.00043013,4]
[349082477,1736963468973,-637.04,0.00043013,4]
[349082478,1736963468982,-500.0,0.00043013,4]
[349082479,1736963468991,-637.04,0.00043013,4]
[349082480,1736963469000,-500.0,0.00043013,4]
[349082481,1736963469010,-500.0,0.00043013,4]
[349082482,1736963469019,-637.04,0.00043013,4]
[349082483,1736963469028,-500.0,0.00043013,4]
[349082484,1736963469037,-637.04,0.00043013,4]
[349082485,1736963469047,-500.0,0.00043013,4]
[349082486,1736963469056,-500.0,0.00043013,4]
[349082487,1736963469065,-500.0,0.00043013,4]
[349082488,1736963469074,-637.04,0.00043013,4]
[349082489,1736963469085,-500.0,0.00043013,4]
[349082490,1736963469094,-500.0,0.00043013,4]
[349082491,1736963469107,-637.04,0.00043013,4]
[349082492,1736963469116,-197.00374235,0.00043013,4]
[349082493,1736963469257,-302.99625765,0.00043013,4]
[349082494,1736963469268,-426.12745949,0.00043013,4]
[349082495,1736963999254,-292.25,9.9e-05,2]
[349082497,1736964302599,-171.43,0.00010137,2]
[349082498,1736964302624,-378.57,0.00011,2]
[349082499,1736964320398,-171.43,0.00011,2]
[349082517,1736964632417,-172.75,0.00012329,2]
[349082518,1736964632427,-256.76904923,0.000329,2]
[349082519,1736964632437,-582.0,0.00033,21]
[349082520,1736964632447,-256.76904922,0.0003405,2]
[349082521,1736964632457,-939.28431525,0.000347,2]
[349082522,1736964632489,-210626.71568475,0.000347,2]
[349082523,1736964632499,-256.76904922,0.00035199,2]
[349082524,1736964632509,-405.0,0.00035299,2]
[349082525,1736964632519,-300.0,0.000353,2]
[349082526,1736964632529,-2627.7786,0.000356,2]
[349082527,1736964632538,-5556.0,0.00036,3]
[349082528,1736964632548,-2048.0,0.00037,117]
[349082529,1736964632559,-5556.0,0.000374,5]
[349082530,1736964632568,-159.8,0.00038718,2]
[349082531,1736964632578,-2252.8,0.00038909,117]
[349082532,1736964632588,-153.0,0.0003906,2]
[349082533,1736964632597,-153.0,0.00039076,2]
[349082534,1736964632610,-153.0,0.00039092,2]
[349082535,1736964632619,-153.0,0.00039106,2]
[349082536,1736964632629,-4101.000099,0.0004,10]
[349082537,1736964632639,-500.0,0.00040754,2]
[349082538,1736964632648,-200.0,0.000408,2]
[349082539,1736964632657,-4917.59,0.00040818,117]
[349082540,1736964632666,-2751.0,0.00040833,120]
[349082541,1736964632677,-150.0,0.00040971,2]
[349082542,1736964632687,-159.8,0.00040982,2]
[349082543,1736964632696,-250.0,0.00041301,2]
[349082544,1736964632706,-23900.0,0.00041301,2]
[349082545,1736964632716,-250.0,0.00041324,2]
[349082546,1736964632725,-485.57,0.00041466,2]
[349082547,1736964632735,-1000.0,0.00041651,2]
[349082548,1736964632744,-1316.322,0.00041759,62]
[349082549,1736964632754,-271.286,0.00041759,62]
[349082550,1736964632764,-171.43,0.00041849,2]
[349082551,1736964632774,-1104.0,0.00041868,2]
[349082552,1736964632784,-250.0,0.00041872,120]
[349082553,1736964632794,-281.38,0.00041872,2]
[349082554,1736964632804,-824.73,0.00041872,120]
[349082555,1736964632814,-940.27,0.00041903,120]
[349082556,1736964632823,-500.0,0.00042,15]
[349082557,1736964632833,-1000.0,0.000421,15]
[349082558,1736964632843,-1500.0,0.000422,15]
[349082559,1736964632853,-5000.0,0.00042273,30]
[349082560,1736964632863,-2000.0,0.000423,15]
[349082561,1736964632873,-2500.0,0.000424,15]
[349082562,1736964632882,-500.0,0.000425,15]
[349082563,1736964632892,-500.0,0.000426,15]
[349082564,1736964632902,-503.9065831,0.00042629,4]
[349082565,1736964632912,-500.0,0.000427,15]
[349082566,1736964632922,-5324.8,0.00042727,117]
[349082567,1736964632931,-500.0,0.000428,15]
[349082568,1736964632941,-1000.0,0.00042812,2]
[349082569,1736964632951,-5000.0,0.00042812,2]
[349082570,1736964632960,-356.49543346,0.00042813,15]
[349082571,1736964632970,-786.0,0.000429,15]
[349082572,1736964632980,-250000.0,0.00042912,120]
[349082573,1736964632990,-100477.4727,0.00042913,2]
[349082574,1736964632999,-36130.7807,0.00042913,2]
[349082575,1736964633009,-518.3474,0.00042913,3]
[349082576,1736964633021,-179.23847955,0.00042913,9]
[349082577,1736964633031,-196.76777732,0.00042913,120]
[349082578,1736964633042,-178.24375917,0.00042913,17]
[349082579,1736964633052,-300.0,0.00043012,30]
[349082580,1736964633062,-500.0,0.00043012,7]
[349082581,1736964633071,-999.0,0.00043012,120]
[349082582,1736964633081,-2500.0,0.00043012,120]
[349082583,1736964633092,-122121.46639167,0.00043013,33]
[349082584,1736964633104,-3320.7,0.00043013,33]
[349082585,1736964633116,-4615.6,0.00043013,33]
[349082586,1736964633127,-2301.0,0.00043013,33]
[349082587,1736964633143,-600.0,0.00043013,33]
[349082588,1736964633155,-42057.35314684,0.00043013,33]
[349082589,1736964633257,-656148.3785985,0.00043013,33]
[349082590,1736964633269,-81558.47905215,0.00043013,33]
[349082591,1736964633279,-193.47787782,0.00043013,2]
[349082592,1736964633289,-151.0,0.00043013,2]
[349082593,1736964633299,-151.0,0.00043013,2]
[349082594,1736964633309,-500.0,0.00043013,4]
[349082595,1736964633318,-500.0,0.00043013,4]
[349082596,1736964633329,-500.0,0.00043013,4]
[349082597,1736964633338,-500.0,0.00043013,4]
[349082598,1736964633348,-501.32363208,0.00043013,4]
[349082599,1736964633358,-151.795266,0.00043013,14]
[349082600,1736964633368,-504.19391943,0.00043013,4]
[349082601,1736964633378,-500.67570349,0.00043013,4]
[349082602,1736964633388,-500.79269661,0.00043013,4]
[349082603,1736964633398,-500.0,0.00043013,4]
[349082604,1736964633407,-500.0,0.00043013,4]
[349082605,1736964633417,-500.0,0.00043013,4]
[349082606,1736964633426,-565.24050831,0.00043013,4]
[349082607,1736964633435,-500.0,0.00043013,4]
[349082608,1736964633446,-500.0,0.00043013,4]
[349082609,1736964633455,-501.33127077,0.00043013,4]
[349082610,1736964633465,-500.335631,0.00043013,4]
[349082611,1736964633476,-500.0,0.00043013,4]
[349082612,1736964633487,-500.0,0.00043013,4]
[349082613,1736964633497,-500.0,0.00043013,4]
[349082614,1736964633507,-500.0,0.00043013,4]
[349082615,1736964633516,-500.0,0.00043013,4]
[349082616,1736964633527,-500.0,0.00043013,4]
[349082617,1736964633537,-500.0,0.00043013,4]
[349082618,1736964633547,-500.0,0.00043013,4]
[349082619,1736964633557,-500.0,0.00043013,4]
[349082620,1736964633567,-500.0,0.00043013,4]
[349082621,1736964633577,-473.20199535,0.00043013,4]
[349082622,1736964633587,-500.0,0.00043013,4]
[349082623,1736964633597,-500.0,0.00043013,4]
[349082624,1736964633607,-500.0,0.00043013,4]
[349082625,1736964633617,-500.0,0.00043013,4]
[349082627,1736964633627,-500.0,0.00043013,4]
[349082629,1736964633636,-500.0,0.00043013,4]
[349082631,1736964633646,-500.0,0.00043013,4]
[349082633,1736964633655,-500.0,0.00043013,4]
[349082634,1736964633665,-500.0,0.00043013,4]
[349082635,1736964633675,-345.74863126,0.00043013,4]
[349082636,1736964633689,-500.0,0.00043013,4]
[349082637,1736964633699,-501.07896012,0.00043013,4]
[349082638,1736964633709,-151.0,0.00043013,14]
[349082639,1736964633719,-151.0,0.00043013,14]
[349082640,1736964633729,-500.0,0.00043013,4]
[349082641,1736964633739,-500.0,0.00043013,4]
[349082642,1736964633748,-500.0,0.00043013,4]
[349082643,1736964633758,-500.0,0.00043013,4]
[349082645,1736964633768,-301.48636955,0.00043013,4]
[349082646,1736964633778,-590.98970702,0.00043013,4]
[349082649,1736964633789,-500.88216737,0.00043013,4]
[349082650,1736964633799,-500.0,0.00043013,4]
[349082652,1736964633809,-500.0,0.00043013,4]
[349082654,1736964633818,-501.49842122,0.00043013,4]
[349082656,1736964633828,-500.0,0.00043013,4]
[349082658,1736964633838,-501.35458818,0.00043013,4]
[349082660,1736964633847,-500.0,0.00043013,4]
[349082662,1736964633857,-347.87179035,0.00043013,4]
[349082663,1736964633867,-500.0,0.00043013,4]
[349082666,1736964633877,-500.0,0.00043013,4]
[349082670,1736964633887,-500.0,0.00043013,4]
[349082673,1736964633896,-500.0,0.00043013,4]
[349082675,1736964633905,-500.0,0.00043013,4]
[349082677,1736964633915,-500.0,0.00043013,4]
[349082679,1736964633924,-500.0,0.00043013,4]
[349082682,1736964633934,-500.81682399,0.00043013,4]
[349082684,1736964633943,-391.71059101,0.00043013,4]
[349082687,1736964633953,-500.0,0.00043013,4]
[349082690,1736964633962,-500.0,0.00043013,4]
[349082692,1736964633972,-500.0,0.00043013,4]
[349082695,1736964633983,-500.0,0.00043013,4]
[349082697,1736964633992,-500.59265729,0.00043013,4]
[349082699,1736964634003,-500.0,0.00043013,4]
[349082700,1736964634013,-500.0,0.00043013,4]
[349082702,1736964634024,-500.0,0.00043013,4]
[349082705,1736964634034,-501.4789636,0.00043013,4]
[349082706,1736964634043,-500.0,0.00043013,4]
[349082709,1736964634053,-500.0,0.00043013,4]
[349082710,1736964634062,-500.0,0.00043013,4]
[349082712,1736964634072,-300.0,0.00043013,4]
[349082714,1736964634081,-300.57184681,0.00043013,4]
[349082716,1736964634090,-500.0,0.00043013,4]
[349082718,1736964634099,-500.0,0.00043013,4]
[349082720,1736964634108,-500.0,0.00043013,4]
[349082722,1736964634118,-500.0,0.00043013,4]
[349082724,1736964634127,-500.0,0.00043013,4]
[349082726,1736964634136,-377.18145083,0.00043013,4]
[349082735,1736964634210,-122.81854917,0.00043013,4]
[349082737,1736964634219,-317.00145093,0.00043013,4]
[349082739,1736964634231,-182.99854907,0.00043013,4]
[349082741,1736964634240,-500.0,0.00043013,4]
[349082743,1736964634250,-276.36845083,0.00043013,4]
[349082745,1736964634262,-223.63154917,0.00043013,4]
[349082747,1736964634272,-229.7940624,0.00043013,4]
[349082903,1736964638026,-270.2059376,0.00043013,4]
[349082904,1736964638036,-40.03416945,0.00043013,4]
[349082908,1736964638187,-150.0,0.00041868,2]
[349082909,1736964638196,-459.96583055,0.00043013,4]
[349082910,1736964638206,-236.93416951,0.00043013,4]
[349082911,1736964638218,-263.06583049,0.00043013,4]
[349082912,1736964638228,-460.93420451,0.00043013,4]
[349082913,1736964638239,-39.06579549,0.00043013,4]
[349082914,1736964638249,-500.0,0.00043013,4]
[349082915,1736964638259,-500.0,0.00043013,4]
[349082916,1736964638268,-144.43420051,0.00043013,4]
[349082917,1736964638281,-355.56579949,0.00043013,4]
[349082918,1736964638290,-500.0,0.00043013,4]
[349082919,1736964638300,-500.0,0.00043013,4]
[349082920,1736964638310,-500.0,0.00043013,4]
[349082921,1736964638320,-270.90015541,0.00043013,4]
[349082922,1736964638331,-500.0,0.00043013,4]
[349082923,1736964638341,-500.0,0.00043013,4]
[349082924,1736964638351,-500.0,0.00043013,4]
[349082925,1736964638360,-500.0,0.00043013,4]
[349082926,1736964638370,-500.0,0.00043013,4]
[349082927,1736964638380,-529.46066837,0.00043013,4]
[349082928,1736964638389,-500.0,0.00043013,4]
[349082929,1736964638401,-500.0,0.00043013,4]
[349082931,1736964638410,-500.0,0.00043013,4]
[349082933,1736964638420,-500.0,0.00043013,4]
[349082935,1736964638431,-500.0,0.00043013,4]
[349082936,1736964638441,-500.0,0.00043013,4]
[349082937,1736964638451,-500.0,0.00043013,4]
[349082938,1736964638460,-500.0,0.00043013,4]
[349082939,1736964638470,-500.0,0.00043013,4]
[349082940,1736964638483,-500.0,0.00043013,4]
[349082941,1736964638494,-599.39991311,0.00043013,4]
[349082942,1736964638504,-500.0,0.00043013,4]
[349082943,1736964638514,-500.0,0.00043013,4]
[349082944,1736964638525,-500.0,0.00043013,4]
[349082946,1736964638535,-608.24957837,0.00043013,4]
[349082948,1736964638545,-500.0,0.00043013,4]
[349082950,1736964638556,-553.19473759,0.00043013,4]
[349082952,1736964638566,-500.0,0.00043013,4]
[349082955,1736964638576,-500.0,0.00043013,4]
[349082957,1736964638586,-500.0,0.00043013,4]
[349082959,1736964638595,-500.0,0.00043013,4]
[349082961,1736964638605,-500.0,0.00043013,4]
[349082963,1736964638614,-151.0,0.00043013,7]
[349082965,1736964638624,-500.0,0.00043013,4]
[349082967,1736964638633,-500.0,0.00043013,4]
[349082969,1736964638643,-500.0,0.00043013,4]
[349082971,1736964638653,-500.0,0.00043013,4]
[349082973,1736964638662,-500.0,0.00043013,4]
[349082975,1736964638672,-500.0,0.00043013,4]
[349082977,1736964638682,-500.0,0.00043013,4]
[349082979,1736964638692,-500.0,0.00043013,4]
[349082981,1736964638702,-500.0,0.00043013,4]
[349082983,1736964638712,-500.0,0.00043013,4]
[349082985,1736964638722,-500.0,0.00043013,4]
[349082986,1736964638732,-423.2331837,0.00043013,4]
[349082991,1736964638764,-76.7668163,0.00043013,4]
[349082993,1736964638774,-500.0,0.00043013,4]
[349082995,1736964638784,-348.83498795,0.00043013,4]
[349082997,1736964638797,-151.16501205,0.00043013,4]
[349082999,1736964638808,-473.65395654,0.00043013,4]
[349083002,1736964638820,-26.34604346,0.00043013,4]
[349083004,1736964638832,-354.95148345,0.00043013,4]
[349083006,1736964638845,-145.04851655,0.00043013,4]
[349083008,1736964638855,-500.0,0.00043013,4]
[349083010,1736964638865,-151.18173,0.00043013,14]
[349083012,1736964638875,-500.0,0.00043013,4]
[349083014,1736964638885,-500.0,0.00043013,4]
[349083016,1736964638896,-500.0,0.00043013,4]
[349083018,1736964638906,-500.0,0.00043013,4]
[349083020,1736964638915,-500.0,0.00043013,4]
[349083022,1736964638926,-500.0,0.00043013,4]
[349083024,1736964638935,-500.0,0.00043013,4]
[349083026,1736964638945,-501.35544198,0.00043013,4]
[349083028,1736964638954,-500.0,0.00043013,4]
[349083030,1736964638963,-500.0,0.00043013,4]
[349083032,1736964638973,-500.0,0.00043013,4]
[349083034,1736964638983,-500.0,0.00043013,4]
[349083036,1736964638992,-500.0,0.00043013,4]
[349083038,1736964639002,-500.0,0.00043013,4]
[349083040,1736964639011,-500.0,0.00043013,4]
[349083042,1736964639024,-500.0,0.00043013,4]
[349083044,1736964639033,-500.0,0.00043013,4]
[349083046,1736964639043,-500.0,0.00043013,4]
[349083048,1736964639052,-500.0,0.00043013,4]
[349083050,1736964639062,-500.0,0.00043013,4]
[349083052,1736964639071,-151.0,0.00043013,14]
[349083054,1736964639082,-500.0,0.00043013,4]
[349083056,1736964639091,-500.0,0.00043013,4]
[349083058,1736964639101,-500.0,0.00043013,4]
[349083060,1736964639111,-500.0,0.00043013,4]
[349083062,1736964639121,-500.0,0.00043013,4]
[349083064,1736964639131,-500.0,0.00043013,4]
[349083066,1736964639140,-500.0,0.00043013,4]
[349083068,1736964639151,-500.0,0.00043013,4]
[349083070,1736964639161,-500.0,0.00043013,4]
[349083072,1736964639171,-500.0,0.00043013,4]
[349083074,1736964639181,-500.0,0.00043013,4]
[349083076,1736964639191,-500.0,0.00043013,4]
[349083078,1736964639202,-500.0,0.00043013,4]
[349083080,1736964639212,-500.0,0.00043013,4]
[349083082,1736964639222,-500.0,0.00043013,4]
[349083084,1736964639231,-500.0,0.00043013,4]
[349083086,1736964639241,-500.0,0.00043013,4]
[349083088,1736964639251,-500.0,0.00043013,4]
[349083090,1736964639260,-500.0,0.00043013,4]
[349083093,1736964639269,-500.0,0.00043013,4]
[349083095,1736964639280,-500.0,0.00043013,4]
[349083097,1736964639289,-500.0,0.00043013,4]
[349083099,1736964639298,-500.0,0.00043013,4]
[349083101,1736964639307,-500.0,0.00043013,4]
[349083103,1736964639317,-500.0,0.00043013,4]
[349083104,1736964639327,-500.0,0.00043013,4]
[349083107,1736964639337,-500.0,0.00043013,4]
[349083109,1736964639346,-500.0,0.00043013,4]
[349083111,1736964639355,-500.0,0.00043013,4]
[349083112,1736964639365,-500.0,0.00043013,4]
[349083114,1736964639374,-500.0,0.00043013,4]
[349083116,1736964639383,-500.0,0.00043013,4]
[349083118,1736964639393,-500.0,0.00043013,4]
[349083120,1736964639402,-500.0,0.00043013,4]
[349083122,1736964639411,-301.89223643,0.00043013,4]
[349083124,1736964639419,-500.0,0.00043013,4]
[349083126,1736964639429,-500.0,0.00043013,4]
[349083128,1736964639437,-500.0,0.00043013,4]
[349083130,1736964639447,-500.0,0.00043013,4]
[349083132,1736964639457,-500.0,0.00043013,4]
[349083134,1736964639466,-500.0,0.00043013,4]
[349083136,1736964639477,-500.0,0.00043013,4]
[349083138,1736964639491,-500.0,0.00043013,4]
[349083141,1736964639501,-500.0,0.00043013,4]
[349083143,1736964639510,-500.0,0.00043013,4]
[349083144,1736964639521,-500.0,0.00043013,4]
[349083146,1736964639530,-500.0,0.00043013,4]
[349083148,1736964639539,-500.0,0.00043013,4]
[349083151,1736964639549,-500.0,0.00043013,4]
[349083153,1736964639560,-151.0,0.00043013,14]
[349083154,1736964639570,-500.0,0.00043013,4]
[349083156,1736964639580,-500.0,0.00043013,4]
[349083159,1736964639590,-500.0,0.00043013,4]
[349083161,1736964639600,-500.0,0.00043013,4]
[349083163,1736964639610,-500.0,0.00043013,4]
[349083165,1736964639619,-500.0,0.00043013,4]
[349083167,1736964639629,-500.90899813,0.00043013,4]
[349083169,1736964639638,-500.0,0.00043013,4]
[349083171,1736964639648,-500.0,0.00043013,4]
[349083173,1736964639658,-500.0,0.00043013,4]
[349083175,1736964639668,-500.0,0.00043013,4]
[349083177,1736964639677,-500.0,0.00043013,4]
[349083179,1736964639686,-500.0,0.00043013,4]
[349083181,1736964639695,-500.0,0.00043013,4]
[349083183,1736964639705,-500.0,0.00043013,4]
[349083185,1736964639714,-500.0,0.00043013,4]
[349083187,1736964639724,-496.45253349,0.00043013,4]
[349083189,1736964639733,-500.0,0.00043013,4]
[349083191,1736964639743,-500.0,0.00043013,4]
[349083193,1736964639753,-500.0,0.00043013,4]
[349083195,1736964639762,-501.28449635,0.00043013,4]
[349083197,1736964639772,-500.0,0.00043013,4]
[349083199,1736964639781,-500.0,0.00043013,4]
[349083201,1736964639791,-500.0,0.00043013,4]
[349083203,1736964639803,-500.0,0.00043013,4]
[349083205,1736964639812,-358.71,0.00043013,4]
[349083207,1736964639822,-500.0,0.00043013,4]
[349083209,1736964639833,-500.0,0.00043013,4]
[349083211,1736964639843,-327.20602335,0.00043013,4]